bitfinex/quotes_SOLUSD_20241117
["timestamp","ask_amount","ask_price","bid_price","bid_amount"]
[1731822324144,0.4656599,235.28,235.23,23.776884]
[1731822324735,0.4656599,235.28,235.24,28.81554064]
[1731822324949,0.4656599,235.28,235.26,28.94103064]
[1731822325152,0.4656599,235.28,235.27,24.12153862]
[1731822325850,28.81554064,235.37,235.27,36.80353862]
[1731822326034,28.81554064,235.37,235.3,23.776884]
[1731822326236,28.81554064,235.35,235.27,36.458884]
[1731822327861,28.81554064,235.43,235.34,28.81554064]
[1731822328736,28.81554064,235.41,235.32,28.94103064]
[1731822328948,28.81554064,235.41,235.33,23.776884]
[1731822329744,13.1265,235.53,235.4,28.81554064]
[1731822329957,28.81554064,235.48,235.38,28.81554064]
[1731822330161,28.81554064,235.44,235.39,23.776884]
[1731822330335,28.81554064,235.44,235.35,28.81554064]
[1731822330538,28.81554064,235.46,235.37,28.81554064]
[1731822331045,28.81554064,235.46,235.34,31.71287462]
[1731822331046,28.81554064,235.44,235.38,23.776884]
[1731822331438,28.81554064,235.42,235.35,23.776884]
[1731822331940,28.81554064,235.36,235.28,32.6956]
[1731822332146,28.81554064,235.38,235.29,28.81554064]
[1731822332357,0.09367462,235.49,235.31,28.81554064]
[1731822332358,28.81554064,235.4,235.31,28.81554064]
[1731822332846,28.81554064,235.42,235.33,28.81554064]
[1731822333653,28.81554064,235.42,235.34,23.776884]
[1731822334059,28.81554064,235.46,235.37,28.81554064]
[1731822334250,28.81554064,235.48,235.39,28.81554064]
[1731822334446,28.81554064,235.48,235.4,23.776884]
[1731822335753,28.81554064,235.41,235.32,28.81554064]
[1731822336050,0.21916462,235.49,235.33,23.776884]
[1731822336051,28.81554064,235.38,235.33,23.776884]
[1731822336248,28.81554064,235.4,235.33,23.776884]
[1731822336432,28.81554064,235.4,235.32,23.87055862]
[1731822336855,28.81554064,235.36,235.32,23.776884]
[1731822337065,28.81554064,235.36,235.28,32.6956]
[1731822337931,28.81554064,235.34,235.28,32.6956]
[1731822338136,28.81554064,235.3,235.27,12.682]
[1731822338353,0.09367462,235.27,235.12,43.9944]
[1731822338558,28.81554064,235.18,235.12,43.9944]
[1731822338752,28.81554064,235.2,235.12,43.9944]
[1731822339635,28.81554064,235.22,235.13,48.81554064]
[1731822339839,28.81554064,235.24,235.15,28.81554064]
[1731822340043,28.81554064,235.22,235.13,48.81554064]
[1731822340243,28.81554064,235.24,235.13,48.81554064]
[1731822340443,28.81554064,235.24,235.15,28.81554064]
[1731822341155,28.81554064,235.3,235.21,28.81554064]
[1731822342037,28.81554064,235.3,235.22,23.776884]
[1731822342536,28.81554064,235.34,235.25,0.12549]
[1731822343336,28.81554064,235.3,235.24,23.776884]
[1731822343867,28.81554064,235.28,235.24,23.776884]
[1731822344038,28.81554064,235.28,235.21,23.776884]
[1731822344247,28.81554064,235.28,235.2,28.81554064]
[1731822344564,27.81554064,235.28,235.2,28.81554064]
[1731822345337,27.81554064,235.28,235.16,0.1]
[1731822345338,28.81554064,235.24,235.16,28.81554064]
[1731822345638,28.81554064,235.24,235.14,28.81554064]
[1731822345872,28.81554064,235.22,235.14,28.81554064]
[1731822346435,28.81554064,235.24,235.14,28.81554064]
[1731822347339,28.81554064,235.27,235.19,0.12549]
[1731822347560,28.81554064,235.27,235.19,23.902374]
[1731822347867,28.81554064,235.27,235.19,23.776884]
[1731822348047,0.09367462,235.37,235.19,23.776884]
[1731822348246,28.81554064,235.27,235.19,23.776884]
[1731822348854,28.81554064,235.25,235.17,23.776884]
[1731822349051,28.81554064,235.23,235.14,28.81554064]
[1731822349363,28.81554064,235.23,235.15,0.12549]
[1731822349862,28.81554064,235.25,235.16,28.81554064]
[1731822350160,28.81554064,235.39,235.27,0.12549]
[1731822350367,28.81554064,235.39,235.3,28.81554064]
[1731822350573,28.81554064,235.37,235.28,28.81554064]
[1731822350865,28.81554064,235.37,235.29,23.776884]
[1731822351373,28.81554064,235.35,235.27,23.776884]
[1731822351542,28.81554064,235.37,235.27,23.776884]
[1731822351747,28.81554064,235.37,235.29,23.776884]
[1731822352343,28.81554064,235.33,235.25,0.12549]
[1731822352670,28.81554064,235.35,235.25,23.902374]
[1731822353964,28.81554064,235.35,235.24,0.12549]
[1731822354167,28.81554064,235.35,235.25,23.776884]
[1731822356057,28.81554064,235.35,235.26,28.81554064]
[1731822356461,28.81554064,235.35,235.27,23.776884]
[1731822357762,28.81554064,235.33,235.27,23.776884]
[1731822357969,28.81554064,235.33,235.25,23.776884]
[1731822358848,28.81554064,235.35,235.26,28.81554064]
[1731822359051,28.81554064,235.35,235.27,23.776884]
[1731822362272,28.81554064,235.33,235.25,23.776884]
[1731822365162,28.81554064,235.29,235.2,28.81554064]
[1731822365474,28.81554064,235.29,235.2,20.0]
[1731822366006,0.31916462,235.42,235.23,0.09367462]
[1731822366007,28.81554064,235.31,235.23,0.09367462]
[1731822366276,28.81554064,235.33,235.23,0.09367462]
[1731822366458,28.81554064,235.33,235.23,24.12153862]
[1731822366862,28.81554064,235.33,235.25,23.902374]
[1731822367360,6.61552216,235.47,235.32,41.49964064]
[1731822367566,28.81554064,235.39,235.33,23.776884]
[1731822367756,28.81554064,235.37,235.32,12.6841]
[1731822368078,28.81554064,235.35,235.32,12.6841]
[1731822370564,28.81554064,235.33,235.26,12.1576]
[1731822370779,28.81554064,235.27,235.2,44.5069]
[1731822371005,28.81554064,235.3,235.2,44.5069]
[1731822371006,28.81554064,235.23,235.2,44.5069]
[1731822371155,28.81554064,235.25,235.2,44.5069]
[1731822372782,28.81554064,235.25,235.21,23.902374]
[1731822372957,28.81554064,235.27,235.21,23.902374]
[1731822373677,28.81554064,235.23,235.2,44.5069]
[1731822373878,28.81554064,235.21,235.2,44.5069]
[1731822374666,28.81554064,235.21,235.2,32.3493]
[1731822374866,28.81554064,235.21,235.2,56.126184]
[1731822375375,28.81554064,235.21,235.2,23.776884]
[1731822376260,26.46208864,235.35,235.27,131.68445936]
[1731822376469,28.81554064,235.32,235.23,0.12549]
[1731822376766,28.81554064,235.32,235.25,56.126184]
[1731822377770,28.81554064,235.34,235.25,56.126184]
[1731822377969,28.81554064,235.34,235.26,28.94103064]
[1731822378267,28.81554064,235.42,235.33,0.12549]
[1731822378474,28.81554064,235.42,235.35,23.776884]
[1731822379176,28.81554064,235.42,235.33,23.902374]
[1731822379769,28.81554064,235.38,235.33,23.776884]
[1731822379956,0.09367462,235.5,235.3,28.81554064]
[1731822379957,28.81554064,235.36,235.3,0.12549]
[1731822380160,28.81554064,235.32,235.25,32.3493]
[1731822380360,0.1,235.42,235.25,32.3493]
[1731822380361,28.81554064,235.28,235.25,32.3493]
[1731822381088,28.81554064,235.3,235.25,32.3493]
[1731822382081,28.81554064,235.3,235.26,23.776884]
[1731822383688,38.87462216,235.44,235.27,0.25098]
[1731822383980,28.81554064,235.38,235.31,0.12549]
[1731822384688,28.81554064,235.36,235.27,28.81554064]
[1731822384889,28.81554064,235.34,235.27,0.12549]
[1731822385282,28.81554064,235.36,235.27,28.94103064]
[1731822385469,28.81554064,235.36,235.29,0.12549]
[1731822388878,28.81554064,235.34,235.28,23.776884]
[1731822389085,28.81554064,235.3,235.25,32.3493]
[1731822390381,28.81554064,235.26,235.21,12.1576]
[1731822390581,28.81554064,235.24,235.21,12.1576]
[1731822391185,28.81554064,235.26,235.21,12.1576]
[1731822391569,28.81554064,235.24,235.21,12.1576]
[1731822391768,28.81554064,235.22,235.2,31.3642]
[1731822392386,28.81554064,235.24,235.2,31.3642]
[1731822392981,28.81554064,235.24,235.21,23.776884]
[1731822394092,35.4310628,235.29,235.21,23.776884]
[1731822394291,28.81554064,235.23,235.2,31.3642]
[1731822394474,28.81554064,235.21,235.16,12.5977]
[1731822394792,28.81554064,235.17,235.09,31.3642]
[1731822395099,0.09367462,235.16,235.03,32.7317]
[1731822395294,28.81554064,235.06,235.03,32.7317]
[1731822395599,28.81554064,235.04,234.99,12.908]
[1731822396395,28.81554064,235.08,234.99,41.72354064]
[1731822396887,28.81554064,235.1,235.01,28.81554064]
[1731822397089,28.81554064,235.08,234.99,41.72354064]
[1731822397794,28.81554064,235.14,235.06,23.776884]
[1731822397988,28.81554064,235.16,235.06,23.776884]
[1731822398190,6.61552216,235.18,235.09,28.81554064]
[1731822398396,3.14303628,235.17,235.12,23.776884]
[1731822398579,3.14303628,235.16,235.12,23.776884]
[1731822398776,3.14303628,235.15,235.1,23.776884]
[1731822398973,3.14303628,235.14,235.1,23.776884]
[1731822399201,3.14303628,235.13,235.1,23.776884]
[1731822399384,28.81554064,235.18,235.1,23.776884]
[1731822399580,3.14194209,235.17,235.13,28.81554064]
[1731822399892,28.81554064,235.24,235.17,23.776884]
[1731822400100,3.14163384,235.23,235.17,23.776884]
[1731822400292,3.14163384,235.22,235.17,23.776884]
[1731822400496,28.81554064,235.26,235.17,23.776884]
[1731822401410,16.995129,235.29,235.24,41.72354064]
[1731822401698,28.81554064,235.26,235.21,32.7317]
[1731822403099,30.22431932,235.33,235.22,23.776884]
[1731822403100,28.81554064,235.28,235.22,23.776884]
[1731822403296,23.60879716,235.33,235.22,23.776884]
[1731822403597,28.81554064,235.32,235.22,52.59242464]
[1731822403993,28.81554064,235.34,235.24,28.81554064]
[1731822404208,28.81554064,235.36,235.27,23.776884]
[1731822404501,28.81554064,235.36,235.29,23.776884]
[1731822405606,28.81554064,235.38,235.3,20.34465462]
[1731822405783,16.986128,235.42,235.33,23.776884]
[1731822405784,28.81554064,235.42,235.33,23.776884]
[1731822405984,28.81554064,235.42,235.35,23.776884]
[1731822406790,28.81554064,235.36,235.31,12.5349]
[1731822406991,28.81554064,235.34,235.32,23.776884]
[1731822407598,28.81554064,235.36,235.32,23.776884]
[1731822407993,28.81554064,235.36,235.31,12.5349]
[1731822410190,6.61552216,235.42,235.32,28.81554064]
[1731822410399,28.81554064,235.43,235.34,28.81554064]
[1731822410600,28.81554064,235.39,235.31,41.35044064]
[1731822411412,28.81554064,235.37,235.31,12.5349]
[1731822411795,28.81554064,235.39,235.31,12.5349]
[1731822412212,28.81554064,235.41,235.33,28.81554064]
[1731822412708,28.81554064,235.41,235.31,41.35044064]
[1731822413009,6.61552216,235.45,235.31,41.35044064]
[1731822413010,28.81554064,235.39,235.31,41.35044064]
[1731822413299,28.81554064,235.41,235.31,41.35044064]
[1731822414687,28.81554064,235.39,235.31,41.35044064]
[1731822414895,28.81554064,235.34,235.29,30.5363]
[1731822415502,28.81554064,235.36,235.29,30.5363]
[1731822415889,28.81554064,235.34,235.29,30.5363]
[1731822416412,28.81554064,235.3,235.24,32.6087]
[1731822416592,28.81554064,235.28,235.24,32.6087]
[1731822416796,28.81554064,235.28,235.19,41.32894064]
[1731822417313,28.81554064,235.3,235.21,28.81554064]
[1731822418024,28.81554064,235.32,235.21,28.81554064]
[1731822418193,28.81554064,235.32,235.23,28.81554064]
[1731822419015,28.81554064,235.24,235.19,12.5134]
[1731822419213,28.81554064,235.24,235.18,32.6087]
[1731822419917,28.81554064,235.24,235.13,12.5134]
[1731822419918,28.81554064,235.19,235.13,45.1221]
[1731822420212,28.81554064,235.25,235.15,28.81554064]
[1731822420403,28.81554064,235.25,235.17,28.81554064]
[1731822420716,28.81554064,235.27,235.17,28.81554064]
[1731822421098,28.81554064,235.29,235.21,28.81554064]
[1731822421302,6.61552216,235.32,235.23,28.81554064]
[1731822421617,28.81554064,235.36,235.27,28.81554064]
[1731822421814,28.81554064,235.38,235.27,28.81554064]
[1731822422193,28.81554064,235.38,235.29,28.81554064]
[1731822422393,28.81554064,235.4,235.29,28.81554064]
[1731822422603,28.81554064,235.4,235.31,28.81554064]
[1731822422817,28.81554064,235.4,235.29,28.81554064]
[1731822423016,28.81554064,235.4,235.31,28.81554064]
[1731822423894,28.81554064,235.38,235.29,28.81554064]
[1731822424214,28.81554064,235.44,235.34,0.12549]
[1731822424406,28.81554064,235.44,235.35,28.81554064]
[1731822424610,28.81554064,235.42,235.33,28.81554064]
[1731822425194,28.81554064,235.42,235.31,48.81554064]
[1731822425391,28.81554064,235.4,235.31,48.81554064]
[1731822425811,28.81554064,235.38,235.28,28.81554064]
[1731822426119,28.81554064,235.36,235.28,28.81554064]
[1731822427819,28.81554064,235.29,235.19,44.1234]
[1731822427996,28.81554064,235.22,235.13,12.3259]
[1731822428408,26.56208864,235.32,235.13,12.3259]
[1731822428409,7.80886674,235.31,235.2,28.81554064]
[1731822428712,7.80886674,235.31,235.25,28.81554064]
[1731822429314,28.81554064,235.33,235.25,28.81554064]
[1731822429507,28.81554064,235.33,235.26,23.776884]
[1731822429703,28.81554064,235.33,235.17,28.81554064]
[1731822429704,28.81554064,235.29,235.13,33.5904]
[1731822429917,28.81554064,235.27,235.16,28.81554064]
[1731822430420,28.81554064,235.27,235.18,28.81554064]
[1731822431529,28.81554064,235.33,235.24,28.81554064]
[1731822431817,28.81554064,235.31,235.21,23.776884]
[1731822432025,28.81554064,235.33,235.24,28.81554064]
[1731822432217,6.61552216,235.36,235.24,28.81554064]
[1731822432418,28.81554064,235.37,235.28,28.81554064]
[1731822432622,28.81554064,235.39,235.3,28.81554064]
[1731822433123,28.81554064,235.39,235.3,28.31554064]
[1731822433323,28.81554064,235.41,235.32,28.81554064]
[1731822433512,28.81554064,235.43,235.35,23.776884]
[1731822434604,16.98342,235.45,235.3,4.2498]
[1731822434605,28.81554064,235.39,235.3,28.81554064]
[1731822434798,28.81554064,235.37,235.29,23.776884]
[1731822435113,28.81554064,235.41,235.33,23.776884]
[1731822435303,28.81554064,235.41,235.32,28.81554064]
[1731822435607,28.81554064,235.39,235.3,28.81554064]
[1731822435812,28.81554064,235.33,235.27,32.0935]
[1731822436209,28.81554064,235.37,235.28,28.81554064]
[1731822436515,28.81554064,235.35,235.27,32.0935]
[1731822436823,28.81554064,235.33,235.27,32.0935]
[1731822439325,28.81554064,235.35,235.27,32.0935]
[1731822439531,28.81554064,235.37,235.28,28.81554064]
[1731822439916,28.81554064,235.39,235.3,28.81554064]
[1731822440122,28.81554064,235.39,235.31,23.776884]
[1731822440816,28.81554064,235.41,235.32,28.81554064]
[1731822441019,6.61552216,235.51,235.36,23.776884]
[1731822441220,28.81554064,235.42,235.36,23.776884]
[1731822442117,28.81554064,235.4,235.35,13.1087]
[1731822442308,28.81554064,235.36,235.3,23.776884]
[1731822442510,28.81554064,235.32,235.29,13.1087]
[1731822442716,28.81554064,235.34,235.29,13.1087]
[1731822443015,28.81554064,235.36,235.29,13.1087]
[1731822443224,28.81554064,235.34,235.29,13.1087]
[1731822443915,28.81554064,235.32,235.27,32.0935]
[1731822444722,6.61552216,235.4,235.27,36.3438]
[1731822445038,28.81554064,235.34,235.27,32.0935]
[1731822445244,28.81554064,235.32,235.27,32.0935]
[1731822445414,28.81554064,235.34,235.27,32.0935]
[1731822447832,28.81554064,235.36,235.28,52.59242464]
[1731822448216,28.81554064,235.38,235.28,52.59242464]
[1731822448517,28.81554064,235.4,235.31,23.776884]
[1731822448733,28.81554064,235.38,235.31,23.776884]
[1731822448932,28.81554064,235.38,235.29,23.776884]
[1731822449935,28.81554064,235.34,235.27,32.0935]
[1731822450122,28.81554064,235.36,235.28,28.81554064]
[1731822450321,28.81554064,235.38,235.28,28.81554064]
[1731822450745,28.81554064,235.4,235.3,28.81554064]
[1731822451238,28.81554064,235.36,235.31,23.776884]
[1731822451829,6.61552216,235.39,235.27,32.0935]
[1731822451830,28.81554064,235.32,235.27,32.0935]
[1731822452030,13.23104432,235.39,235.27,36.3438]
[1731822452031,28.81554064,235.36,235.27,36.3438]
[1731822452634,6.61552216,235.39,235.3,28.81554064]
[1731822452839,35.4310628,235.4,235.3,28.81554064]
[1731822453037,6.61552216,235.41,235.34,28.81554064]
[1731822453247,6.61552216,235.45,235.37,32.7992]
[1731822453537,6.61552216,235.45,235.38,23.776884]
[1731822453915,35.4310628,235.46,235.38,23.776884]
[1731822454420,28.81554064,235.46,235.38,23.776884]
[1731822454624,28.81554064,235.44,235.38,23.776884]
[1731822454921,6.61552216,235.46,235.4,52.59242464]
[1731822455116,6.61552216,235.5,235.44,23.776884]
[1731822455421,35.4310628,235.51,235.43,23.776884]
[1731822455620,28.81554064,235.51,235.43,23.776884]
[1731822455835,7.08118206,235.52,235.38,39.43664064]
[1731822455836,28.81554064,235.47,235.38,39.43664064]
[1731822456073,28.81554064,235.47,235.4,23.776884]
[1731822456415,28.81554064,235.49,235.4,23.776884]
[1731822456617,28.81554064,235.49,235.41,0.12549]
[1731822456840,29.28120054,235.52,235.42,28.81554064]
[1731822457035,29.28120054,235.52,235.44,20.0]
[1731822457341,29.28120054,235.52,235.45,36.153284]
[1731822458116,0.4656599,235.52,235.48,52.71791464]
[1731822459029,0.4656599,235.52,235.51,23.902374]
[1731822459233,0.4656599,235.52,235.51,24.12153862]
[1731822459429,0.4656599,235.52,235.51,23.902374]
[1731822459741,6.61552216,235.63,235.6,23.776884]
[1731822459942,35.4310628,235.65,235.6,23.776884]
[1731822460450,6.61552216,235.65,235.6,23.776884]
[1731822460649,6.61552216,235.67,235.6,52.59242464]
[1731822460849,6.61552216,235.68,235.62,28.81554064]
[1731822461153,6.61552216,235.74,235.67,23.776884]
[1731822461358,66.5694983,235.91,235.74,24.027864]
[1731822461556,66.5694983,235.91,235.73,73.99114064]
[1731822461557,28.81554064,235.85,235.76,23.776884]
[1731822461852,28.81554064,235.83,235.73,73.99114064]
[1731822462023,28.81554064,235.81,235.74,23.776884]
[1731822462226,28.81554064,235.95,235.77,0.25098]
[1731822462227,0.1,235.93,235.77,0.25098]
[1731822462444,28.81554064,235.86,235.76,23.776884]
[1731822462658,28.81554064,235.84,235.76,23.776884]
[1731822464047,28.81554064,235.9,235.81,28.81554064]
[1731822464231,28.81554064,235.92,235.83,28.81554064]
[1731822464440,0.2,236.03,235.83,28.81554064]
[1731822464441,28.81554064,235.94,235.85,0.12549]
[1731822464741,28.81554064,235.94,235.84,23.776884]
[1731822465044,28.81554064,235.86,235.78,23.776884]
[1731822465347,28.81554064,235.86,235.76,23.776884]
[1731822465734,28.81554064,235.8,235.73,45.1756]
[1731822465934,28.81554064,235.8,235.73,32.7992]
[1731822467343,28.81554064,235.78,235.73,32.7992]
[1731822467541,28.81554064,235.78,235.67,28.81554064]
[1731822468552,28.81554064,235.72,235.66,13.1067]
[1731822468752,0.12549,235.81,235.64,31.7059]
[1731822468753,28.81554064,235.7,235.64,31.7059]
[1731822469138,28.81554064,235.68,235.59,28.81554064]
[1731822469544,28.81554064,235.72,235.63,28.81554064]
[1731822469744,28.81554064,235.7,235.61,28.81554064]
[1731822470338,28.81554064,235.73,235.63,28.81554064]
[1731822470532,28.81554064,235.71,235.63,28.81554064]
[1731822470733,0.1,235.84,235.67,28.81554064]
[1731822470956,12.0712,235.96,235.73,28.81554064]
[1731822470957,0.1,235.91,235.73,28.81554064]
[1731822471128,28.81554064,235.82,235.73,28.81554064]
[1731822471633,28.81554064,235.84,235.74,23.776884]
[1731822472063,28.81554064,235.84,235.76,23.776884]
[1731822472353,28.81554064,235.86,235.76,23.776884]
[1731822472752,28.81554064,235.86,235.78,23.776884]
[1731822473053,28.81554064,235.92,235.84,23.776884]
[1731822473237,28.81554064,235.94,235.84,23.776884]
[1731822473560,28.81554064,235.9,235.81,28.81554064]
[1731822473849,28.81554064,235.9,235.82,23.776884]
[1731822474060,28.81554064,235.92,235.84,23.776884]
[1731822474255,28.81554064,235.92,235.83,28.81554064]
[1731822474459,28.81554064,235.92,235.84,23.776884]
[1731822474959,28.81554064,235.92,235.82,23.776884]
[1731822475146,28.81554064,235.9,235.8,23.776884]
[1731822476156,28.81554064,235.88,235.79,28.81554064]
[1731822476466,20.0,235.87,235.79,28.81554064]
[1731822477564,0.12549,235.96,235.76,12.7957]
[1731822477565,0.1,236.16,235.95,160.5]
[1731822477733,0.4656599,236.22,235.93,23.776884]
[1731822477734,28.81554064,236.01,235.93,23.776884]
[1731822478138,29.28120054,235.99,235.91,23.776884]
[1731822478365,29.28120054,235.99,235.9,23.776884]
[1731822478547,29.28120054,235.99,235.89,0.25098]
[1731822478745,28.81554064,235.97,235.88,23.776884]
[1731822479144,0.4656599,235.99,235.88,23.776884]
[1731822479145,0.4656599,235.99,235.89,49.16019526]
[1731822479356,0.4656599,235.99,235.93,0.12549]
[1731822479661,0.4656599,235.99,235.9,23.776884]
[1731822479849,0.4656599,235.99,235.92,23.776884]
[1731822480242,0.4656599,235.99,235.98,52.71791464]
[1731822480860,0.4656599,235.99,235.98,70.23413786]
[1731822481251,0.1,236.18,235.98,70.23413786]
[1731822481252,6.58545015,236.19,236.1,0.1]
[1731822481439,46.33176386,236.35,236.18,46.33176386]
[1731822481644,0.1,236.33,236.21,46.33176386]
[1731822481846,46.33176386,236.31,236.19,46.33176386]
[1731822482050,0.1,236.35,236.1,0.1]
[1731822482051,46.33176386,236.29,236.17,46.33176386]
[1731822482264,46.33176386,236.29,236.19,46.33176386]
[1731822482466,46.33176386,236.29,236.02,21.1845]
[1731822482467,46.33176386,236.2,235.98,31.5039]
[1731822482641,0.1,236.21,236.05,46.33176386]
[1731822482642,46.33176386,236.16,236.05,46.33176386]
[1731822482839,46.33176386,236.16,235.99,20.0]
[1731822482840,46.33176386,236.23,236.12,46.33176386]
[1731822483367,0.2,236.3,236.16,46.33176386]
[1731822483543,46.33176386,236.26,236.14,46.33176386]
[1731822483747,46.33176386,236.24,236.14,46.33176386]
[1731822484056,12.1712,236.39,236.21,23.776884]
[1731822484247,46.33176386,236.37,236.21,24.12153862]
[1731822485057,46.33176386,236.39,236.21,70.45330248]
[1731822485257,0.1,236.43,236.21,74.68680248]
[1731822485443,46.33176386,236.4,236.21,74.68680248]
[1731822485645,46.33176386,236.42,236.22,0.09367462]
[1731822485867,46.33176386,236.42,236.32,46.33176386]
[1731822486753,46.33176386,236.4,236.29,23.776884]
[1731822487346,46.33176386,236.42,236.32,46.33176386]
[1731822487969,46.33176386,236.45,236.36,46.33176386]
[1731822488162,0.4656599,236.46,236.38,46.33176386]
[1731822488657,46.33176386,236.45,236.36,46.33176386]
[1731822489056,46.33176386,236.45,236.35,23.776884]
[1731822489652,0.4656599,236.46,236.38,46.45725386]
[1731822489961,0.4656599,236.46,236.39,23.776884]
[1731822490673,0.4656599,236.46,236.44,46.33176386]
[1731822490871,0.4656599,236.46,236.45,23.776884]
[1731822491257,0.4656599,236.46,236.44,46.33176386]
[1731822491572,0.4656599,236.46,236.4,46.33176386]
[1731822491750,0.4656599,236.46,236.38,46.33176386]
[1731822492064,46.33176386,236.44,236.36,46.33176386]
[1731822492368,20.0,236.45,236.38,46.33176386]
[1731822492572,0.4656599,236.46,236.42,46.33176386]
[1731822492787,0.4656599,236.46,236.44,46.33176386]
[1731822492955,0.4656599,236.46,236.42,46.33176386]
[1731822493350,0.4656599,236.46,236.4,46.33176386]
[1731822493600,20.0,236.44,236.36,46.33176386]
[1731822494075,0.4656599,236.46,236.38,46.33176386]
[1731822494975,46.33176386,236.45,236.36,46.33176386]
[1731822495167,20.0,236.42,236.32,46.33176386]
[1731822495370,46.33176386,236.43,236.32,46.33176386]
[1731822495567,20.0,236.42,236.32,46.33176386]
[1731822495771,0.4656599,236.46,236.32,46.33176386]
[1731822495972,20.0,236.42,236.32,46.33176386]
[1731822496472,20.0,236.4,236.32,46.33176386]
[1731822496686,46.33176386,236.41,236.32,46.33176386]
[1731822496861,20.0,236.42,236.36,46.33176386]
[1731822497063,0.4656599,236.46,236.4,46.33176386]
[1731822497380,0.4656599,236.46,236.38,46.33176386]
[1731822498051,46.33176386,236.45,236.36,46.33176386]
[1731822498570,46.33176386,236.45,236.34,46.33176386]
[1731822498776,46.33176386,236.43,236.34,46.33176386]
[1731822498956,20.0,236.42,236.36,46.33176386]
[1731822499159,0.4656599,236.46,236.4,46.33176386]
[1731822499352,0.4656599,236.46,236.34,46.33176386]
[1731822499353,0.4656599,236.46,236.42,46.33176386]
[1731822499972,0.4656599,236.46,236.39,46.33176386]
[1731822500158,0.4656599,236.46,236.35,70.10864786]
[1731822500159,46.33176386,236.44,236.35,70.10864786]
[1731822501372,46.33176386,236.42,236.33,46.33176386]
[1731822502775,46.33176386,236.4,236.31,46.33176386]
[1731822503361,46.33176386,236.4,236.29,77.83126386]
[1731822503667,46.33176386,236.36,236.29,31.4995]
[1731822503863,46.33176386,236.34,236.25,46.33176386]
[1731822504069,46.33176386,236.36,236.27,46.33176386]
[1731822505390,46.33176386,236.32,236.21,77.83126386]
[1731822505568,46.33176386,236.3,236.21,77.83126386]
[1731822506279,46.33176386,236.24,236.15,46.33176386]
[1731822507376,0.09367462,236.3,236.12,30.9939]
[1731822507377,46.33176386,236.18,236.12,30.9939]
[1731822507670,12.61437462,236.3,236.06,23.269]
[1731822507671,46.33176386,236.16,236.06,59.01036386]
[1731822507984,46.33176386,236.14,236.06,46.33176386]
[1731822508191,20.0,236.13,236.05,30.9939]
[1731822508478,46.33176386,236.14,236.06,46.33176386]
[1731822508690,20.34465462,236.2,236.06,46.33176386]
[1731822508866,46.33176386,236.11,236.02,46.33176386]
[1731822509795,46.33176386,236.09,235.99,46.33176386]
[1731822510694,46.33176386,236.07,235.99,46.33176386]
[1731822512068,16.936319,236.15,236.07,23.776884]
[1731822512269,12.5207,236.3,236.15,23.776884]
[1731822512573,46.33176386,236.29,236.19,46.33176386]
[1731822512772,12.5207,236.3,236.17,46.33176386]
[1731822512773,46.33176386,236.25,236.17,46.33176386]
[1731822513780,20.0,236.24,236.17,46.33176386]
[1731822513972,46.33176386,236.25,236.17,46.33176386]
[1731822514183,20.0,236.24,236.17,46.33176386]
[1731822514368,46.33176386,236.27,236.19,46.33176386]
[1731822514689,20.0,236.26,236.19,46.33176386]
[1731822515888,46.33176386,236.21,236.13,46.33176386]
[1731822516121,46.33176386,236.25,236.17,46.33176386]
[1731822516468,20.0,236.24,236.17,46.33176386]
[1731822516669,20.0,236.24,236.15,46.33176386]
[1731822517285,46.33176386,236.23,236.15,46.33176386]
[1731822519679,0.25098,236.32,236.21,46.33176386]
[1731822519871,16.924483,236.34,236.15,7.13794885]
[1731822519872,0.2,236.34,236.15,7.13794885]
[1731822520102,46.33176386,236.24,236.16,46.33176386]
[1731822520385,46.33176386,236.24,236.1,46.33176386]
[1731822520386,46.33176386,236.18,236.1,46.33176386]
[1731822521090,46.33176386,236.2,236.12,46.33176386]
[1731822521294,20.0,236.19,236.12,46.33176386]
[1731822522795,20.0,236.19,236.1,46.33176386]
[1731822522981,46.33176386,236.18,236.08,46.33176386]
[1731822523180,46.33176386,236.16,236.08,46.33176386]
[1731822523996,0.34465462,236.23,236.08,46.33176386]
[1731822524195,46.33176386,236.18,236.1,46.33176386]
[1731822524896,0.34465462,236.21,236.1,46.33176386]
[1731822525092,20.0,236.18,236.1,46.33176386]
[1731822525480,46.33176386,236.19,236.1,46.33176386]
[1731822526281,20.21916462,236.18,236.1,46.33176386]
[1731822526487,46.33176386,236.17,236.08,46.33176386]
[1731822526875,28.49029596,236.17,236.08,28.49029596]
[1731822527696,28.49029596,236.17,236.06,45.087]
[1731822527998,28.49029596,236.17,236.07,28.49029596]
[1731822528500,28.49029596,236.15,236.07,28.49029596]